bitfinex-derivatives/quotes_BTCF0:USTF0_20251129
["timestamp","ask_amount","ask_price","bid_price","bid_amount"]
[1764376939733,0.8142797,90994.0,90993.0,0.04693]
[1764376940234,0.7902186,90994.0,90993.0,0.04693]
[1764376944531,0.40923,90994.0,90993.0,0.04693]
[1764376944727,0.43923,90994.0,90993.0,0.04693]
[1764376945641,0.40923,90994.0,90993.0,0.04693]
[1764376947637,0.3648,90994.0,90993.0,0.05827374]
[1764376948139,0.3859,90994.0,90993.0,0.05827374]
[1764376948338,0.3839,90994.0,90993.0,0.05727374]
[1764376948545,0.0231,90994.0,90993.0,0.41807374]
[1764376948733,0.04594,90994.0,90993.0,0.49709639]
[1764376949332,0.04594,90994.0,90993.0,0.49692071]
[1764376949931,0.04394,90994.0,90993.0,0.49792071]
[1764376950238,0.04394,90994.0,90993.0,0.41907374]
[1764376952038,0.04394,91008.0,91007.0,0.04249]
[1764376952237,0.04394,91008.0,91007.0,0.483477]
[1764376952635,0.041905,91008.0,91007.0,0.483477]
[1764376953334,0.019065,91008.0,91007.0,0.483477]
[1764376953541,0.04394,91017.0,91016.0,0.0534759]
[1764376953739,0.0109857,91018.0,91017.0,0.04249]
[1764376953946,0.0109857,91018.0,91017.0,0.45249]
[1764376954135,0.0320857,91018.0,91017.0,0.45249]
[1764376954337,0.0211,91018.0,91017.0,0.45249]
[1764376954537,0.0211,91018.0,91017.0,0.81329]
[1764376954937,0.0320853,91022.0,91021.0,0.04249]
[1764376955341,0.40474,91029.0,91028.0,0.04249]
[1764376955544,0.66474,91029.0,91028.0,0.04249]
[1764376955742,0.6757244,91029.0,91028.0,0.04249]
[1764376956346,0.40474,91029.0,91028.0,0.04249]
[1764376957649,0.40874,91029.0,91028.0,0.04249]
[1764376960741,0.3648,91029.0,91023.0,0.010985]
[1764376960949,0.04394,91024.0,91023.0,0.08519003]
[1764376961150,0.04394,91024.0,91023.0,0.06519003]
[1764376961344,0.04394,91024.0,91023.0,0.48519003]
[1764376962142,0.0231,91024.0,91023.0,0.48519003]
[1764376962338,0.04594,91024.0,91023.0,0.48519003]
[1764376966853,0.04594,91024.0,91023.0,0.06519003]
[1764376967054,0.04594,91024.0,91023.0,0.40519003]
[1764376967851,0.002,91024.0,91023.0,0.40519003]
[1764376969655,0.0231,91024.0,91023.0,0.40519003]
[1764376969855,0.04594,91024.0,91023.0,0.40519003]
[1764376970050,0.04394,91024.0,91023.0,0.40519003]
[1764376970951,0.0211,91024.0,91023.0,0.40519003]
[1764376971158,0.0549248,91026.0,91025.0,0.0534748]
[1764376973766,0.0549248,91026.0,91023.0,0.03309503]
[1764376973767,0.04394,91024.0,91023.0,0.03309503]
[1764376974066,0.04394,91024.0,91023.0,0.04249]
[1764376977068,0.0694554,91020.0,91019.0,0.03292266]
[1764376977266,0.0694554,91020.0,91019.0,0.01146266]
[1764376977662,0.010987,91007.0,91006.0,0.3608]
[1764376977862,0.207147,91007.0,91006.0,0.3608]
[1764376978366,0.057147,91007.0,91006.0,0.38226]
[1764376978570,0.057147,91007.0,91006.0,0.40406]
[1764376979277,0.0571464,91012.0,91011.0,0.04326]
[1764376979481,0.08128384,91012.0,91011.0,0.04326]
[1764376980372,0.08128384,91012.0,91011.0,0.04526]
[1764376980568,0.07029744,91012.0,91011.0,0.04526]
[1764376980773,0.04632415,91016.0,91015.0,0.05625]
[1764376980964,0.07046688,91016.0,91015.0,0.46625]
[1764376981165,0.07046688,91016.0,91015.0,0.477236]
[1764376981363,0.07046688,91016.0,91015.0,0.20625]
[1764376982371,0.07046688,91016.0,91015.0,0.20725]
[1764376982372,0.04632415,91016.0,91015.0,0.20725]
[1764376982577,0.47632415,91016.0,91015.0,0.001]
[1764376982768,0.04632415,91016.0,91015.0,0.02246]
[1764376983166,0.04632415,91016.0,91015.0,0.04426]
[1764376983576,0.04632415,91016.0,91015.0,0.02246]
[1764376983778,0.04632415,91016.0,91015.0,0.02146]
[1764376983983,0.04632415,91016.0,91015.0,0.02446]
[1764376984377,0.04632415,91016.0,91015.0,0.04626]
[1764376985881,0.04632415,91016.0,91015.0,0.003]
[1764376985882,0.86632415,91016.0,91015.0,0.003]
[1764376986277,0.057147,91007.0,91006.0,0.01176439]
[1764376986477,0.0571477,91001.0,91000.0,0.02146]
[1764376986684,0.0571477,91001.0,91000.0,0.04326]
[1764376987471,0.0581477,91001.0,91000.0,0.05026]
[1764376988277,0.0581477,91001.0,91000.0,0.06159514]
[1764376988787,0.0571477,91001.0,91000.0,0.05459514]
[1764376989080,0.0571477,91001.0,91000.0,0.05759514]
[1764376990587,0.0571477,91001.0,91000.0,0.07058514]
[1764376991288,0.0340077,91001.0,91000.0,0.07058514]
[1764376991487,0.0571477,91001.0,91000.0,0.07058514]
[1764376991784,0.3608,91012.0,91011.0,0.04326]
[1764376991983,0.02302,91012.0,91011.0,0.04326]
[1764376992791,0.04616,91012.0,91011.0,0.04326]
[1764376993580,0.04816,91012.0,91011.0,0.04326]
[1764376994891,0.04616,91012.0,91011.0,0.04326]
[1764376995092,0.04616,91012.0,91011.0,0.04526]
[1764376997289,0.04616,91012.0,91011.0,0.05657147]
[1764376997590,0.04616,91012.0,91011.0,0.01331147]
[1764376998688,0.46616,91012.0,91011.0,0.002]
[1764376999889,0.85616,91012.0,91011.0,0.002]
[1764377000092,0.60616,91012.0,91011.0,0.002]
[1764377000992,0.96696,91012.0,91011.0,0.002]
[1764377004085,0.96696,91012.0,90997.0,0.00016479]
[1764377004086,0.0443,90998.0,90997.0,0.01175317]
[1764377004393,0.9451,90998.0,90997.0,0.01175317]
[1764377004693,0.9451,90998.0,90997.0,0.00016479]
[1764377005191,0.9461,90998.0,90997.0,0.00516479]
[1764377005991,0.7761,90998.0,90997.0,0.00516479]
[1764377006189,0.7751,90998.0,90997.0,0.00116479]
[1764377007387,0.7751,90998.0,90997.0,0.02346479]
[1764377007687,0.7761,90998.0,90997.0,0.04528479]
[1764377007994,0.4061,90998.0,90997.0,0.04528479]
[1764377009198,0.4051,90998.0,90997.0,0.04628479]
[1764377011195,0.8151,90998.0,90997.0,0.00016479]
[1764377011996,0.8151,90998.0,90997.0,0.02246479]
[1764377014192,0.8161,90998.0,90997.0,0.02246479]
[1764377014591,0.8151,90998.0,90997.0,0.02246479]
[1764377014791,0.8161,90998.0,90997.0,0.02246479]
[1764377015201,0.8161,90998.0,90997.0,0.00016479]
[1764377016896,0.8161,90998.0,90997.0,0.02246479]
[1764377017101,0.8161,90998.0,90997.0,0.04528479]
[1764377022808,0.8161,90998.0,90997.0,0.02246479]
[1764377023003,0.8161,90998.0,90997.0,0.04528479]
[1764377024701,0.4553,90998.0,90997.0,0.04528479]
[1764377027506,0.001,90998.0,90997.0,0.41528479]
[1764377028302,0.001,90998.0,90997.0,0.49413176]
[1764377028608,0.001,90998.0,90997.0,0.41528479]
[1764377028795,0.034237,91007.0,91006.0,0.04512]
[1764377028996,0.02325,91007.0,91006.0,0.0561071]
[1764377029213,0.0109869,91008.0,91007.0,0.04512]
[1764377029503,0.0342369,91008.0,91007.0,0.04512]
[1764377029711,0.2018362,91014.0,91013.0,0.04512]
[1764377030204,0.0342362,91014.0,91013.0,0.04512]
[1764377030403,0.0562262,91014.0,91013.0,0.04512]
[1764377030903,0.04624,91014.0,91013.0,0.04512]
[1764377034112,0.40704,91014.0,91013.0,0.04512]
[1764377036012,0.40704,91014.0,91013.0,0.01117876]
[1764377036216,0.04545,91007.0,91006.0,0.12394949]
[1764377036617,0.04545,91007.0,91006.0,0.04503]
[1764377036916,0.056437,91007.0,91006.0,0.04503]
[1764377037507,0.056437,91007.0,91006.0,0.04703]
[1764377037908,0.866437,91007.0,91006.0,0.002]
[1764377038810,1.039557,91007.0,91006.0,0.002]
[1764377039523,0.809557,91007.0,91006.0,0.002]
[1764377040021,0.0546976,91002.0,91001.0,0.05707583]
[1764377040320,0.4446976,91002.0,91001.0,0.04542]
[1764377041512,0.4456976,91002.0,91001.0,0.04542]
[1764377041712,0.0556976,91002.0,91001.0,0.04542]
[1764377043014,0.0546976,91002.0,91001.0,0.04542]
[1764377043210,0.0546976,91002.0,91001.0,0.04642]
[1764377044614,0.0546976,91002.0,91001.0,0.04742]
[1764377045322,0.04371,91002.0,91001.0,0.04742]
[1764377051640,0.02151,91002.0,91001.0,0.04742]
[1764377051833,0.04371,91002.0,91001.0,0.04742]
[1764377060952,0.04371,91002.0,91001.0,0.0584077]
[1764377061248,0.04371,91002.0,91001.0,0.04742]
[1764377063252,0.04371,91002.0,91001.0,0.12633949]
[1764377065252,0.04371,91002.0,91001.0,0.04742]
[1764377075661,0.0109876,91003.0,91002.0,0.0109876]
[1764377075857,0.3608,91004.0,91003.0,0.04423]
[1764377076052,0.3608,91004.0,91003.0,0.45423]
[1764377076959,0.3717874,91004.0,91003.0,0.45423]
[1764377077153,0.3717874,91004.0,91003.0,0.5332274]
[1764377077554,0.3717874,91004.0,91003.0,0.5342274]
[1764377078061,0.4176074,91004.0,91003.0,0.04723]
[1764377078763,0.8004474,91004.0,91003.0,0.003]
[1764377079354,0.8004474,91004.0,91003.0,0.02403]
[1764377083059,0.8004474,91004.0,91003.0,0.003]
[1764377085268,0.8004474,91004.0,91003.0,0.02403]
[1764377085563,0.8004474,91004.0,91003.0,0.003]
[1764377089369,0.4396474,91004.0,91003.0,0.003]
[1764377089573,0.8004474,91004.0,91003.0,0.003]
[1764377092965,0.4396474,91004.0,91003.0,0.003]
[1764377093165,0.8004474,91004.0,91003.0,0.003]
[1764377093366,0.4396474,91004.0,91003.0,0.003]
[1764377093666,0.8004474,91004.0,91003.0,0.003]
[1764377097677,0.8004474,91004.0,91003.0,0.02403]
[1764377098177,0.7876074,91004.0,91003.0,0.04554]
[1764377098678,0.4576074,91004.0,91003.0,0.04554]
[1764377100676,0.4176074,91004.0,91003.0,0.04554]
[1764377100882,0.8176074,91004.0,91003.0,0.04554]
[1764377101475,0.04369,90999.0,90998.0,0.0789974]
[1764377101680,0.04369,90989.0,90987.0,0.0789974]
[1764377101976,0.0546794,90987.0,90986.0,0.0789974]
[1764377102173,0.0546794,90987.0,90984.0,0.1229674]
[1764377102174,0.04369,90985.0,90984.0,0.1229674]
[1764377102369,0.45369,90985.0,90984.0,0.1229674]
[1764377103174,0.45469,90985.0,90984.0,0.1259674]
[1764377104081,0.45469,90985.0,90984.0,0.04697]
[1764377109886,0.4656797,90985.0,90984.0,0.04697]
[1764377110080,0.0109903,90980.0,90979.0,0.07908337]
[1764377110280,1.4015303,90980.0,90979.0,8.597e-05]
[1764377110482,0.05573,90976.0,90975.0,0.00016479]
[1764377110687,0.47573,90976.0,90975.0,0.00016479]
[1764377111475,0.47581597,90976.0,90975.0,0.00016479]
[1764377112177,0.47581597,90976.0,90975.0,0.01141371]
[1764377112379,0.47681597,90976.0,90975.0,0.00316479]
[1764377112579,0.47681597,90976.0,90975.0,0.02419479]
[1764377113283,0.46517597,90976.0,90975.0,0.04736479]
[1764377113595,0.04517597,90976.0,90975.0,0.04736479]
[1764377114375,0.09517597,90976.0,90975.0,0.04736479]
[1764377116886,0.09517597,90976.0,90975.0,0.05878567]
[1764377119176,0.00108597,90976.0,90975.0,0.45878567]
[1764377119380,0.04517597,90976.0,90975.0,0.05878567]
[1764377119582,0.04517597,90976.0,90975.0,0.13878567]
[1764377121286,0.04517597,90976.0,90975.0,0.40878567]
[1764377121984,0.05616677,90976.0,90975.0,0.40878567]
[1764377127188,0.05616677,90976.0,90975.0,0.05878567]
[1764377127389,0.05616677,90976.0,90975.0,0.06977657]
[1764377129591,0.05616677,90976.0,90975.0,0.05878567]
[1764377129993,0.05616677,90976.0,90975.0,0.06977657]
[1764377131201,0.05616677,90976.0,90975.0,0.05878567]
[1764377132492,0.05616677,90976.0,90975.0,0.06977657]
[1764377137804,0.05616677,90976.0,90975.0,0.43977657]
[1764377139899,0.05616677,90976.0,90975.0,0.42878567]
[1764377140805,0.05616677,90976.0,90975.0,0.44246567]
[1764377141000,0.05616677,90976.0,90975.0,0.42878567]
[1764377143395,0.04517597,90976.0,90975.0,0.42878567]
[1764377143608,0.00108597,90976.0,90975.0,0.42878567]
[1764377144406,0.00108597,90976.0,90975.0,0.78958567]
[1764377152207,0.04462597,90976.0,90975.0,0.54958567]
[1764377153097,0.02250597,90976.0,90975.0,0.77958567]
[1764377153301,0.00108597,90976.0,90975.0,0.77958567]
[1764377154310,0.00108597,90976.0,90975.0,0.8784168]
[1764377154713,0.3717893,90989.0,90988.0,0.05637]
[1764377155208,0.3717893,90989.0,90988.0,0.13539875]
[1764377155511,0.3932093,90989.0,90988.0,0.13539875]
[1764377156613,0.3628,90989.0,90988.0,0.48737]
[1764377157012,0.38403,90989.0,90988.0,0.48737]
[1764377158411,0.38303,90989.0,90988.0,0.48737]
[1764377159309,0.3618,90989.0,90988.0,0.56632131]
[1764377160212,0.38303,90989.0,90988.0,0.56632131]
[1764377160417,0.001,90989.0,90988.0,0.56632131]
[1764377160715,0.001,90989.0,90988.0,0.48737]
[1764377160910,0.001,90989.0,90988.0,0.49842898]
[1764377161619,0.04418,90989.0,90988.0,0.49842898]
[1764377161915,0.02223,90989.0,90988.0,0.49842898]
[1764377163214,0.001,90989.0,90988.0,0.49842898]
[1764377178633,0.0558492,90989.0,90988.0,0.24146898]
[1764377178826,0.0558492,90989.0,90988.0,0.03429898]
[1764377179422,0.0558492,90989.0,90988.0,0.05616898]
[1764377179824,0.8658492,90989.0,90988.0,0.01205898]
[1764377180738,0.8658492,90989.0,90988.0,0.001]
[1764377181728,0.8658492,90989.0,90979.0,0.14359011]
[1764377181729,0.0548503,90980.0,90979.0,0.18824011]
[1764377181929,0.04386,90978.0,90977.0,0.10176262]
[1764377182136,0.04386,90976.0,90973.0,0.07898262]
[1764377182433,0.45386,90976.0,90970.0,0.50439011]
[1764377182835,0.45386,90976.0,90971.0,0.0109913]
[1764377183720,0.45386,90976.0,90975.0,0.07917492]
[1764377184428,0.45386,90976.0,90975.0,0.08017492]
[1764377184634,0.45486,90976.0,90975.0,0.08517492]
[1764377185026,0.45386,90976.0,90975.0,0.08017492]
[1764377185233,0.45486,90976.0,90975.0,0.02594479]
[1764377185435,0.15486,90976.0,90975.0,0.04781479]
[1764377185628,0.42486,90976.0,90975.0,0.04781479]
[1764377186435,0.42486,90976.0,90975.0,0.05895494]
[1764377190340,0.04486,90976.0,90975.0,0.05895494]
[1764377193840,0.04486,90976.0,90975.0,0.06994584]
[1764377195540,0.0109909,90975.0,90972.0,0.07901013]
[1764377195741,0.0109909,90975.0,90952.0,0.0244136]
[1764377195742,0.0553226,90961.0,90960.0,0.14173113]
[1764377195946,0.4853226,90961.0,90960.0,0.0429]
[1764377196442,0.04433,90959.0,90958.0,0.38197]
[1764377196643,0.47433,90959.0,90958.0,0.03245399]
[1764377196840,0.04433,90959.0,90958.0,0.05418399]
[1764377197043,0.0553239,90950.0,90949.0,0.02133488]
[1764377197346,0.4586239,90950.0,90949.0,0.00016488]
[1764377197746,0.8886239,90950.0,90949.0,0.00016488]
[1764377198238,0.0553255,90937.0,90936.0,0.4037]
[1764377199837,0.0563255,90937.0,90936.0,0.4067]
[1764377202345,0.0563255,90937.0,90936.0,0.41777452]
[1764377203538,0.04533,90937.0,90936.0,0.41777452]
[1764377206943,0.001,90937.0,90936.0,0.41777452]
[1764377207442,0.0241,90937.0,90936.0,0.41777452]
[1764377207745,0.04533,90937.0,90936.0,0.41777452]
[1764377209748,0.001,90937.0,90936.0,0.83777452]
[1764377210148,0.0241,90937.0,90936.0,0.83777452]
[1764377210649,0.04533,90937.0,90936.0,0.83777452]
[1764377211648,0.04533,90937.0,90936.0,0.84877012]
[1764377214243,0.04533,90937.0,90936.0,0.41777452]
[1764377214655,0.001,90937.0,90936.0,0.81777452]
[1764377215559,0.00016488,90946.0,90945.0,0.0538945]
[1764377215857,0.00016488,90946.0,90945.0,0.2738945]
[1764377216054,0.04449488,90946.0,90945.0,0.2738945]
[1764377217354,0.00016488,90946.0,90945.0,0.2738945]
[1764377217558,0.05468928,90946.0,90945.0,0.2738945]
[1764377217959,0.05668928,90946.0,90945.0,0.2748945]
[1764377218854,0.05668928,90946.0,90945.0,0.2639]
[1764377219162,0.05668928,90946.0,90945.0,0.0548945]
[1764377222259,0.04569488,90946.0,90945.0,0.0548945]
[1764377222459,0.05668928,90946.0,90945.0,0.0548945]
[1764377224351,0.04569488,90946.0,90945.0,0.13361403]
[1764377224965,0.05668928,90946.0,90945.0,0.13361403]
[1764377225354,0.05668928,90946.0,90945.0,0.0548945]
[1764377227858,0.04569488,90946.0,90945.0,0.0548945]
[1764377231565,0.04569488,90946.0,90945.0,0.0439]
[1764377231862,0.45569488,90946.0,90945.0,0.001]
[1764377232074,0.87569488,90946.0,90945.0,0.001]
[1764377234863,0.04353,90942.0,90941.0,0.10155803]
[1764377235070,0.4445249,90942.0,90941.0,0.02243]
[1764377235270,0.4445249,90942.0,90941.0,0.04443]
[1764377236469,0.8053249,90942.0,90941.0,0.04443]
[1764377236858,0.0562853,90938.0,90936.0,0.09020255]
[1764377237061,0.0562853,90938.0,90920.0,0.0138]
[1764377237062,0.056286,90933.0,90932.0,0.01137931]
[1764377237262,0.04529,90932.0,90931.0,0.07912803]
[1764377237460,0.0562862,90931.0,90930.0,0.12508803]
[1764377237668,0.4862862,90931.0,90930.0,0.04596]
[1764377238471,0.4872862,90931.0,90930.0,0.04996]
[1764377239263,0.4872862,90931.0,90930.0,0.05096]
[1764377241275,0.0919962,90931.0,90930.0,0.05096]
[1764377241571,0.081,90931.0,90930.0,0.05096]
[1764377241769,0.001,90931.0,90930.0,0.53008803]
[1764377241976,0.001,90931.0,90930.0,0.45096]
[1764377246167,0.3608,90944.0,90930.0,0.45096]
[1764377246168,0.40593,90944.0,90943.0,0.0445]
[1764377247181,0.0561246,90944.0,90943.0,0.13449029]
[1764377247778,0.04513,90944.0,90943.0,0.12349559]
[1764377247975,0.04713,90944.0,90943.0,0.12449559]
[1764377251384,0.04713,90944.0,90943.0,0.1356414]
[1764377251980,0.04713,90944.0,90943.0,0.05664581]
[1764377270000,0.0581246,90944.0,90943.0,0.05664581]
[1764377273706,0.2981246,90944.0,90943.0,0.05664581]
[1764377273892,0.3104146,90944.0,90943.0,0.03517581]
[1764377274202,0.3104146,90944.0,90943.0,0.11431625]
[1764377274403,0.3104146,90944.0,90943.0,0.01214581]
[1764377274597,1.1212146,90944.0,90943.0,0.0913022]
[1764377274908,0.8612146,90944.0,90943.0,0.01214581]
[1764377275492,0.8612146,90944.0,90943.0,0.03517581]
[1764377278197,0.5004146,90944.0,90943.0,0.03517581]
[1764377278403,0.8612146,90944.0,90943.0,0.03517581]
[1764377281107,0.8612146,90944.0,90943.0,0.01214581]
[1764377281898,1.0712146,90944.0,90943.0,0.01214581]
[1764377282100,1.0712146,90944.0,90943.0,0.001]
[1764377282913,0.0549057,90935.0,90934.0,0.07915639]
[1764377283210,0.054906,90933.0,90932.0,0.07915639]
[1764377283412,0.424906,90933.0,90932.0,0.10036639]
[1764377284113,0.424906,90933.0,90932.0,0.12148639]
[1764377284304,0.424906,90933.0,90932.0,0.04233]
[1764377284707,0.425906,90933.0,90932.0,0.04633]
[1764377284901,0.055906,90933.0,90932.0,0.04733]
[1764377285206,0.405906,90933.0,90932.0,0.04733]
[1764377286816,0.135906,90933.0,90932.0,0.04733]
[1764377287314,0.135906,90933.0,90932.0,0.05848983]
[1764377287714,0.38443,90933.0,90932.0,0.17138983]
[1764377288009,0.40571,90933.0,90932.0,0.07138983]
[1764377291009,0.38443,90933.0,90932.0,0.07138983]
[1764377291818,0.40571,90933.0,90932.0,0.07138983]
[1764377293210,0.51571,90933.0,90932.0,0.07138983]
[1764377293523,0.40571,90933.0,90932.0,0.07138983]
[1764377293728,0.001,90933.0,90932.0,0.48138983]
[1764377295534,0.001,90933.0,90932.0,0.49238593]
[1764377300434,0.04546,90933.0,90932.0,0.49238593]
[1764377300640,0.02254,90933.0,90932.0,0.59121706]
[1764377302633,0.02254,90933.0,90932.0,0.49238593]
[1764377303039,0.001,90933.0,90932.0,0.49238593]
[1764377303735,0.001,90933.0,90932.0,0.85318593]
[1764377306638,0.011996,90933.0,90932.0,0.85318593]
[1764377308837,0.001,90933.0,90932.0,0.85318593]
[1764377311243,0.04591488,90946.0,90945.0,0.0565645]
[1764377311448,0.30108717,90946.0,90945.0,0.0565645]
[1764377312242,0.30108717,90946.0,90945.0,0.0575645]
[1764377312439,0.27791488,90946.0,90945.0,0.04657]
[1764377313248,0.27791488,90946.0,90945.0,0.0575645]
[1764377316248,0.27791488,90946.0,90945.0,0.06892302]
[1764377318951,0.27791488,90946.0,90945.0,0.05792852]
[1764377319141,0.27791488,90946.0,90945.0,0.13703937]
[1764377320051,0.27791488,90946.0,90945.0,0.05792852]
[1764377326555,0.27791488,90946.0,90945.0,0.01235852]
[1764377326756,0.27791488,90946.0,90945.0,0.09150428]
[1764377326956,0.27791488,90946.0,90945.0,0.01235852]
[1764377328956,1.07871488,90946.0,90945.0,0.001]
[1764377329162,0.05731,90936.0,90935.0,0.07914576]
[1764377329361,0.0567458,90934.0,90933.0,0.07914576]
[1764377329560,0.4267458,90934.0,90933.0,0.07914576]
[1764377329749,0.4267458,90934.0,90933.0,0.10160576]
[1764377330153,0.4267458,90934.0,90933.0,0.04557]
[1764377330461,0.4277458,90934.0,90933.0,0.04857]
[1764377331871,0.0897458,90934.0,90933.0,0.04657]
[1764377332351,0.0907458,90934.0,90933.0,0.04657]
[1764377332550,0.0907458,90934.0,90933.0,0.12571576]
[1764377333677,0.0907458,90934.0,90933.0,0.13671634]
[1764377334170,0.0907458,90934.0,90933.0,0.05757058]
[1764377335269,0.0907458,90934.0,90933.0,0.13671634]
[1764377336871,0.4207458,90934.0,90933.0,0.13671634]
[1764377337563,0.4207458,90934.0,90933.0,0.05757058]
[1764377337763,0.1907458,90934.0,90933.0,0.05757058]
[1764377340974,0.2907458,90934.0,90933.0,0.05757058]
[1764377345778,0.04975,90934.0,90933.0,0.05757058]
[1764377346087,0.004,90934.0,90933.0,0.08233658]
[1764377349182,0.05646938,90946.0,90945.0,0.04358]
[1764377349382,0.05646938,90946.0,90945.0,0.41358]
[1764377349984,0.04547488,90946.0,90945.0,0.41358]
[1764377350488,0.04547488,90946.0,90945.0,0.41458]
[1764377350679,0.05147488,90946.0,90945.0,0.41458]
[1764377351691,0.04647488,90946.0,90945.0,0.41458]
[1764377352590,0.00116488,90946.0,90945.0,0.41458]
[1764377352892,0.02411488,90946.0,90945.0,0.41458]
[1764377355991,0.04647488,90946.0,90945.0,0.41458]
[1764377356195,0.04647488,90946.0,90945.0,0.04458]
[1764377357885,0.04647488,90946.0,90945.0,0.05546752]
[1764377358893,0.02411488,90946.0,90945.0,0.05546752]
[1764377359101,0.00116488,90946.0,90945.0,0.05546752]
[1764377359399,0.00116488,90946.0,90945.0,0.47546752]
[1764377360199,0.02388488,90946.0,90945.0,0.47546752]
[1764377361298,0.00116488,90946.0,90945.0,0.47546752]
[1764377362400,0.022552,90966.0,90945.0,0.47546752]
[1764377362401,0.3608,90974.0,90965.0,0.04437]
[1764377362600,0.3608,90974.0,90973.0,0.04437]
[1764377362992,0.40467,90974.0,90973.0,0.04437]
[1764377363197,0.38352,90974.0,90973.0,0.04437]
[1764377363396,0.04387,90974.0,90973.0,0.04437]
[1764377363796,0.05087,90974.0,90973.0,0.04537]
[1764377363992,0.05087,90974.0,90973.0,0.0563611]
[1764377364294,0.04487,90974.0,90973.0,0.0593611]
[1764377366005,0.04487,90974.0,90973.0,0.04837]
[1764377366691,0.04387,90974.0,90973.0,0.04437]
[1764377366895,0.04487,90974.0,90973.0,0.04837]
[1764377367103,0.04487,90974.0,90973.0,0.0593127]
[1764377367402,0.04487,90974.0,90973.0,0.0583127]
[1764377368195,0.04487,90974.0,90973.0,0.0693038]
[1764377368497,0.04487,90974.0,90973.0,0.0583127]
[1764377376000,0.001,90974.0,90973.0,0.0583127]
[1764377377904,0.001,90974.0,90973.0,0.4483127]
[1764377383507,0.001,90974.0,90973.0,0.8091127]
[1764377385701,0.0232,90974.0,90973.0,0.8091127]
[1764377385909,0.056521,90974.0,90973.0,0.1283127]
[1764377386204,0.056521,90974.0,90973.0,0.0583127]
[1764377387406,0.056521,90974.0,90973.0,0.0693038]
[1764377387904,0.056521,90974.0,90973.0,0.0583127]
[1764377392011,0.456521,90974.0,90973.0,0.0139427]
[1764377394118,0.817321,90974.0,90973.0,0.0139427]
[1764377396819,0.817321,90974.0,90973.0,0.003]
[1764377397021,1.207321,90974.0,90973.0,0.00183512]
[1764377397213,0.0557721,90965.0,90964.0,0.00016488]
[1764377397418,0.4857721,90965.0,90964.0,0.00016488]
[1764377398113,0.4857721,90965.0,90964.0,0.01107179]
[1764377398310,1.2965721,90965.0,90964.0,0.00016488]
[1764377399014,1.2965721,90965.0,90964.0,0.00416488]
[1764377399015,1.2975721,90965.0,90964.0,0.00416488]
[1764377399519,1.2975721,90965.0,90964.0,0.00516488]
[1764377400020,1.3005721,90965.0,90964.0,0.00116488]
[1764377400520,1.3005721,90965.0,90964.0,0.00016488]
[1764377400521,1.2965721,90965.0,90964.0,0.00016488]
[1764377400711,1.3015721,90965.0,90964.0,0.00116488]
[1764377402120,1.2965721,90965.0,90964.0,0.00016488]
[1764377402309,1.3015721,90965.0,90964.0,0.00116488]
[1764377402615,0.8515721,90965.0,90964.0,0.00116488]
[1764377402818,0.8515721,90965.0,90964.0,0.04545488]
[1764377403122,0.8515721,90965.0,90964.0,0.05882488]
[1764377403323,1.0246921,90965.0,90964.0,0.04545488]
[1764377403516,0.8515721,90965.0,90964.0,0.04545488]
[1764377405115,0.8515721,90965.0,90964.0,0.00116488]
[1764377406614,0.8515721,90965.0,90964.0,0.02419488]
[1764377407924,0.8515721,90965.0,90964.0,0.00116488]
[1764377408720,0.85075859,90965.0,90964.0,0.00116488]
[1764377408918,0.85075859,90965.0,90964.0,0.02419488]
[1764377409425,0.85075859,90965.0,90964.0,0.04545488]
[1764377413625,0.85075859,90965.0,90964.0,0.02419488]
[1764377413925,0.85075859,90965.0,90964.0,0.00116488]
[1764377419625,1.24075859,90965.0,90964.0,0.00116488]
[1764377426532,0.45075859,90965.0,90964.0,0.04585488]
[1764377426740,0.78075859,90965.0,90964.0,0.05868488]
[1764377426933,0.78075859,90965.0,90964.0,0.04585488]
[1764377428033,0.95387859,90965.0,90964.0,0.04585488]
[1764377431349,0.59307859,90965.0,90964.0,0.04585488]
[1764377431549,0.95387859,90965.0,90964.0,0.04585488]
[1764377432051,1.39387859,90965.0,90964.0,0.00116488]
[1764377432348,1.41850198,90965.0,90964.0,0.00116488]
[1764377433737,1.41850198,90965.0,90946.0,0.09883113]
[1764377433738,0.05644,90955.0,90954.0,0.0790008]
[1764377433944,0.0551134,90954.0,90953.0,0.0790008]
[1764377434245,0.04412,90951.0,90950.0,0.0790008]
[1764377434442,0.0551143,90947.0,90946.0,0.0790008]
[1764377434641,0.0551143,90947.0,90940.0,0.01119106]
[1764377434642,0.0551146,90944.0,90942.0,0.0790008]
[1764377434842,0.0551149,90942.0,90941.0,0.0790008]
[1764377435041,0.0551149,90942.0,90937.0,0.1020608]
[1764377435042,0.0551154,90938.0,90937.0,0.1020608]
[1764377435349,0.5882354,90938.0,90937.0,0.04469]
[1764377436348,1.2890354,90938.0,90937.0,0.04469]
[1764377437251,1.0290354,90938.0,90937.0,0.04469]
[1764377437454,1.0300354,90938.0,90937.0,0.04769]
[1764377439355,0.9500354,90938.0,90937.0,0.04769]
[1764377449462,0.5892354,90938.0,90937.0,0.04769]
[1764377454361,0.9892354,90938.0,90937.0,0.003]
[1764377454756,0.0551157,90935.0,90934.0,0.00016488]
[1764377455065,0.8551157,90935.0,90934.0,0.00016488]
[1764377455766,0.8551157,90935.0,90934.0,0.00116488]
[1764377456368,0.8551157,90935.0,90934.0,0.00416488]
[1764377456668,0.8561157,90935.0,90934.0,0.00416488]
[1764377458864,0.0538462,90931.0,90930.0,0.01085594]
[1764377459066,0.0538467,90927.0,90926.0,0.02142495]
[1764377459266,0.4338467,90927.0,90926.0,0.04252495]
[1764377459568,0.8338467,90927.0,90926.0,0.00027495]
[1764377460067,0.5738467,90927.0,90926.0,0.04252495]
[1764377460657,0.5748467,90927.0,90926.0,0.04652495]
[1764377461058,0.5748467,90927.0,90926.0,0.00427495]
[1764377461265,0.8748467,90927.0,90926.0,0.00527495]
[1764377467577,0.5448467,90927.0,90926.0,0.00527495]
[1764377468367,0.5448467,90927.0,90926.0,0.04752495]
[1764377468671,0.5448467,90927.0,90926.0,0.02642495]
[1764377468872,0.4348467,90927.0,90926.0,0.04752495]
[1764377469273,0.4348467,90927.0,90926.0,0.02642495]
[1764377469572,0.4348467,90927.0,90926.0,0.00527495]
[1764377471375,0.4348467,90927.0,90926.0,0.04752495]
[1764377471678,0.6080467,90927.0,90926.0,0.04752495]
[1764377471977,0.6070467,90927.0,90926.0,0.04352495]